bitfinex/quotes_SOLUSD_20250108
["timestamp","ask_amount","ask_price","bid_price","bid_amount"]
[1736368457662,0.5169,194.95,194.84,23.776884]
[1736368457871,0.5169,194.95,194.84,39.62866135]
[1736368458165,7.9976016,194.96,194.86,39.62866135]
[1736368458166,89.2976016,194.96,194.86,39.62866135]
[1736368458567,89.2976016,194.96,194.86,23.776884]
[1736368458851,81.3,194.96,194.86,23.776884]
[1736368460360,81.3,194.96,194.86,39.62866135]
[1736368460560,81.3,194.96,194.88,15.85177735]
[1736368460851,81.3,194.96,194.87,15.85177735]
[1736368461057,81.3,194.96,194.88,23.776884]
[1736368461441,81.3,194.96,194.86,15.85177735]
[1736368461442,81.3,194.96,194.89,20.0]
[1736368462247,81.3,194.96,194.85,95.9601]
[1736368462248,81.3,194.96,194.85,83.1301]
[1736368463636,81.3,194.95,194.86,20.0]
[1736368463860,81.3,194.95,194.85,1.5301]
[1736368464442,81.3,194.94,194.83,23.776884]
[1736368469658,81.3,194.94,194.89,23.776884]
[1736368469866,81.3,194.98,194.9,39.62866135]
[1736368470155,81.3,194.98,194.92,23.776884]
[1736368470341,81.3,194.98,194.9,15.85177735]
[1736368470548,81.3,194.98,194.92,43.776884]
[1736368470743,81.3,194.98,194.93,23.776884]
[1736368471047,81.3,194.98,194.92,43.776884]
[1736368471440,81.3,194.98,194.93,23.776884]
[1736368472571,81.3,195.04,194.95,23.776884]
[1736368472778,81.3,195.04,194.95,39.62866135]
[1736368472935,81.3,195.04,194.95,23.776884]
[1736368475266,81.3,195.04,194.93,15.85177735]
[1736368475472,81.3,195.04,194.94,2.5]
[1736368475776,0.5169,195.05,194.94,2.5]
[1736368475777,81.3,195.03,194.94,2.5]
[1736368481575,81.3,195.02,194.94,2.5]
[1736368486481,81.3,195.02,194.91,20.0]
[1736368486780,81.3,195.01,194.88,83.2082]
[1736368487275,81.3,195.01,194.89,23.776884]
[1736368487681,7.62943248,195.05,194.88,83.2082]
[1736368487682,87.843,195.0,194.88,20.0]
[1736368487891,81.8169,194.98,194.83,89.2513]
[1736368488094,81.8169,194.98,194.84,2.5]
[1736368488580,81.8169,194.98,194.85,23.776884]
[1736368489087,81.3,194.94,194.85,23.776884]
[1736368496292,81.3,194.94,194.84,2.5]
[1736368496489,6.1635,194.93,194.83,81.6]
[1736368499586,81.3,194.92,194.82,23.776884]
[1736368500494,0.5169,194.9,194.8,81.6]
[1736368500800,81.3,194.87,194.77,2.5]
[1736368500988,81.3,194.87,194.77,20.0]
[1736368501306,81.3,194.86,194.74,1.6631]
[1736368501480,6.3909,194.85,194.71,10.14084192]
[1736368501682,81.8169,194.84,194.71,2.5]
[1736368502091,81.3,194.83,194.69,1.6631]
[1736368502817,81.3,194.81,194.66,2.5]
[1736368503314,81.3,194.8,194.7,20.0]
[1736368503807,81.3,194.8,194.69,20.0]
[1736368504180,81.3,194.79,194.69,20.0]
[1736368504390,81.3,194.79,194.65,18.35684028]
[1736368504592,0.5169,194.77,194.66,23.776884]
[1736368506680,0.5169,194.77,194.65,26.276884]
[1736368507083,0.5169,194.77,194.65,39.63372428]
[1736368507281,0.5169,194.77,194.69,15.85684028]
[1736368507684,0.5169,194.77,194.66,35.85684028]
[1736368507892,20.0,194.75,194.64,2.5]
[1736368508096,20.0,194.75,194.61,18.35684028]
[1736368508290,20.0,194.75,194.65,20.0]
[1736368509086,20.0,194.73,194.61,2.5]
[1736368509285,20.0,194.73,194.63,20.0]
[1736368509708,81.3,194.72,194.63,20.0]
[1736368511007,6.5072,194.7,194.61,20.0]
[1736368511581,7.0241,194.7,194.61,20.0]
[1736368511987,7.0241,194.7,194.62,20.0]
[1736368512883,7.0241,194.7,194.58,2.5]
[1736368513089,81.3,194.69,194.56,28.70574028]
[1736368513295,81.3,194.69,194.56,31.20574028]
[1736368513903,81.3,194.69,194.56,28.70574028]
[1736368514106,81.3,194.68,194.55,17.47324028]
[1736368514511,81.3,194.68,194.58,20.0]
[1736368515294,81.3,194.68,194.56,23.776884]
[1736368515613,81.3,194.68,194.57,20.0]
[1736368516196,81.3,194.67,194.54,39.63372428]
[1736368516390,101.3,194.61,194.5,126.75017777]
[1736368516590,81.3,194.61,194.5,81.6]
[1736368517006,81.3,194.61,194.51,23.776884]
[1736368518513,81.3,194.6,194.5,20.0]
[1736368519219,81.3,194.6,194.49,39.63372428]
[1736368520116,81.3,194.6,194.52,15.85684028]
[1736368520320,81.3,194.63,194.55,15.85684028]
[1736368520701,81.3,194.63,194.56,15.85684028]
[1736368520896,81.3,194.63,194.55,39.63372428]
[1736368521096,81.3,194.63,194.55,23.776884]
[1736368522000,81.3,194.63,194.54,20.0]
[1736368522699,81.3,194.63,194.54,15.85684028]
[1736368524235,81.3,194.63,194.57,23.776884]
[1736368524419,6.6778,194.64,194.55,23.776884]
[1736368524420,81.3,194.67,194.59,15.85684028]
[1736368524618,6.9369,194.69,194.6,15.85684028]
[1736368524930,6.9369,194.69,194.59,20.0]
[1736368525103,6.9369,194.69,194.6,20.0]
[1736368526205,6.9369,194.69,194.57,15.85684028]
[1736368526524,6.9369,194.69,194.59,20.0]
[1736368527116,6.9369,194.69,194.57,15.85684028]
[1736368527705,81.3,194.68,194.54,17.45124028]
[1736368527915,81.3,194.66,194.54,2.5]
[1736368528326,81.3,194.66,194.54,20.0]
[1736368528625,20.0,194.63,194.51,31.20904028]
[1736368528796,88.3068,194.61,194.5,15.85684028]
[1736368529001,81.3,194.6,194.48,18.35684028]
[1736368530130,81.3,194.6,194.47,15.85684028]
[1736368530307,81.3,194.59,194.47,23.776884]
[1736368530707,81.3,194.59,194.48,20.0]
[1736368531398,81.3,194.59,194.47,35.85684028]
[1736368533535,81.3,194.59,194.49,15.85684028]
[1736368533831,81.3,194.59,194.48,39.63372428]
[1736368537030,81.3,194.59,194.49,15.85684028]
[1736368537336,81.3,194.59,194.49,20.0]
[1736368538338,81.3,194.58,194.49,20.0]
[1736368538728,81.3,194.57,194.46,15.85684028]
[1736368538934,81.3,194.55,194.45,15.85684028]
[1736368539159,81.3,194.55,194.44,15.85684028]
[1736368539445,87.6416,194.54,194.42,18.35684028]
[1736368539815,87.6416,194.54,194.43,23.776884]
[1736368540130,87.6416,194.54,194.42,18.35684028]
[1736368540332,87.6416,194.54,194.43,15.85684028]
[1736368540527,87.6416,194.54,194.43,39.63372428]
[1736368540724,87.6416,194.54,194.44,15.85684028]
[1736368541441,87.6416,194.54,194.45,15.85684028]
[1736368542623,87.6416,194.54,194.44,15.85684028]
[1736368542829,87.6416,194.54,194.43,39.63372428]
[1736368543721,87.6416,194.54,194.44,15.85684028]
[1736368544022,87.6416,194.54,194.45,15.85684028]
[1736368544543,81.3,194.53,194.45,15.85684028]
[1736368545617,81.3,194.53,194.47,15.85684028]
[1736368546239,81.3,194.53,194.46,15.85684028]
[1736368546437,81.3,194.53,194.46,35.85684028]
[1736368546623,81.3,194.53,194.44,15.85684028]
[1736368546823,81.8169,194.53,194.43,28.71454028]
[1736368547231,81.8169,194.53,194.44,39.63372428]
[1736368547951,81.8169,194.53,194.48,20.0]
[1736368548749,81.8169,194.53,194.47,20.0]
[1736368549043,81.8169,194.53,194.49,20.0]
[1736368550053,81.8169,194.53,194.46,15.85684028]
[1736368550228,81.3,194.53,194.46,15.85684028]
[1736368550427,81.3,194.53,194.48,20.0]
[1736368551048,81.3,194.53,194.46,35.85684028]
[1736368551247,81.3,194.53,194.48,20.0]
[1736368551939,81.3,194.53,194.47,20.0]
[1736368553044,81.3,194.53,194.48,20.0]
[1736368553960,81.3,194.56,194.49,15.85684028]
[1736368555528,81.3,194.56,194.46,20.0]
[1736368555529,81.3,194.56,194.48,15.85684028]
[1736368558077,81.3,194.56,194.49,15.85684028]
[1736368558872,81.3,194.56,194.48,15.85684028]
[1736368559671,81.3,194.56,194.49,15.85684028]
[1736368560270,81.3,194.56,194.5,23.776884]
[1736368561073,81.3,194.56,194.5,39.63372428]
[1736368561374,6.2208,194.59,194.53,10.1631042]
[1736368561545,6.2208,194.59,194.52,20.0]
[1736368561871,6.2208,194.59,194.52,43.776884]
[1736368562173,6.2208,194.59,194.52,20.0]
[1736368563472,6.2208,194.59,194.53,23.776884]
[1736368564145,81.8169,194.62,194.53,23.776884]
[1736368564376,81.8169,194.62,194.53,39.658381]
[1736368564560,81.8169,194.62,194.52,39.658381]
[1736368567568,81.8169,194.62,194.51,15.881497]
[1736368567770,81.3,194.61,194.48,15.881497]
[1736368567957,87.5175,194.57,194.46,15.881497]
[1736368568161,87.5175,194.57,194.45,18.381497]
[1736368568564,81.3,194.55,194.43,15.881497]
[1736368568873,0.5169,194.54,194.43,15.881497]
[1736368569086,0.5169,194.54,194.44,39.658381]
[1736368569491,0.5169,194.54,194.48,23.776884]
[1736368569688,6.2175,194.57,194.5,23.776884]
[1736368570190,6.2175,194.57,194.46,20.0]
[1736368570374,6.2175,194.57,194.48,23.776884]
[1736368571183,6.2175,194.57,194.46,15.881497]
[1736368571388,6.2175,194.57,194.45,15.881497]
[1736368571790,6.2175,194.57,194.46,23.776884]
[1736368572093,6.2175,194.57,194.44,15.881497]
[1736368572274,6.2175,194.57,194.44,2.5]
[1736368572593,20.0,194.54,194.44,2.5]
[1736368572891,20.0,194.54,194.45,23.776884]
[1736368573267,20.0,194.54,194.45,39.658381]
[1736368573994,20.0,194.54,194.45,23.776884]
[1736368577398,81.3,194.53,194.45,23.776884]
[1736368577573,14.2151016,194.57,194.48,20.0]
[1736368577775,6.2175,194.57,194.52,15.881497]
[1736368577979,6.5858,194.61,194.52,18.381497]
[1736368578277,6.5858,194.61,194.53,39.658381]
[1736368578475,6.5858,194.61,194.56,23.776884]
[1736368578773,0.5169,194.64,194.56,39.658381]
[1736368578985,0.5169,194.64,194.57,15.881497]
[1736368579200,8.02291029,194.62,194.58,39.658381]
[1736368579382,8.02291029,194.62,194.59,2.5]
[1736368580301,14.60871029,194.65,194.59,2.5]
[1736368580876,8.02291029,194.65,194.6,23.776884]
[1736368581288,8.02291029,194.65,194.57,20.0]
[1736368581489,8.02291029,194.66,194.57,35.881497]
[1736368581884,8.02291029,194.66,194.6,23.776884]
[1736368582598,8.02291029,194.68,194.6,23.776884]
[1736368582779,8.02291029,194.68,194.62,23.776884]
[1736368582976,8.02291029,194.68,194.63,15.881497]
[1736368583482,8.02291029,194.69,194.64,23.776884]
[1736368584096,8.02291029,194.69,194.62,23.776884]
[1736368584277,8.02291029,194.69,194.58,15.881497]
[1736368584485,20.0,194.68,194.55,1.5741]
[1736368584682,20.0,194.68,194.55,17.455597]
[1736368585192,28.02291029,194.68,194.56,23.776884]
[1736368585382,20.0,194.67,194.56,23.776884]
[1736368585582,6.2148,194.66,194.56,23.776884]
[1736368585778,6.2148,194.66,194.53,15.881497]
[1736368585982,0.5169,194.65,194.52,2.5]
[1736368586204,20.0,194.63,194.52,2.5]
[1736368586587,22.5,194.63,194.5,15.881497]
[1736368587005,22.5,194.63,194.52,20.0]
[1736368587203,30.52291029,194.63,194.52,20.0]
[1736368587389,30.52291029,194.63,194.53,23.776884]
[1736368588026,22.5,194.63,194.53,23.776884]
[1736368588508,22.5,194.63,194.53,39.658381]
[1736368588698,22.5,194.63,194.53,23.776884]
[1736368590287,20.0,194.63,194.53,23.776884]
[1736368592315,81.3,194.62,194.53,23.776884]
[1736368592722,81.3,194.6,194.49,15.881497]
[1736368593083,81.3,194.6,194.49,23.776884]
[1736368593611,81.3,194.6,194.47,15.881497]
[1736368593793,81.3,194.56,194.46,17.396797]
[1736368593986,81.8169,194.56,194.44,110.338697]
[1736368594196,81.3,194.54,194.43,18.381497]
[1736368594407,81.3,194.54,194.43,15.881497]
[1736368594824,81.3,194.54,194.44,23.776884]
[1736368595130,81.3,194.54,194.44,39.658381]
[1736368596088,81.3,194.54,194.43,15.881497]
[1736368596410,81.3,194.54,194.45,15.881497]
[1736368596781,81.3,194.54,194.46,39.658381]
[1736368596987,81.3,194.54,194.44,15.881497]
[1736368597202,81.3,194.54,194.43,28.739397]
[1736368597408,81.3,194.54,194.44,23.776884]
[1736368597684,81.3,194.54,194.44,39.658381]
[1736368597904,81.3,194.54,194.44,15.881497]
[1736368598087,81.3,194.54,194.43,15.881497]
[1736368598287,81.3,194.53,194.43,15.881497]
[1736368598486,81.3,194.53,194.45,15.881497]
[1736368599809,81.3,194.53,194.44,15.881497]
[1736368600710,81.3,194.53,194.45,23.776884]
[1736368601009,81.3,194.53,194.45,39.658381]
[1736368601687,81.3,194.53,194.45,23.776884]
[1736368602907,81.3,194.53,194.47,23.776884]
[1736368603316,81.3,194.53,194.49,39.658381]
[1736368603687,0.5169,194.56,194.5,15.881497]
[1736368603892,14.23661029,194.59,194.52,15.881497]
[1736368604107,8.02291029,194.59,194.53,15.881497]
[1736368604306,8.02291029,194.59,194.54,39.658381]
[1736368604500,0.5169,194.61,194.54,39.658381]
[1736368604699,14.23661029,194.64,194.54,39.658381]
[1736368604915,14.23661029,194.64,194.55,15.881497]
[1736368605116,6.2137,194.64,194.55,15.881497]
[1736368605390,6.2137,194.64,194.54,23.776884]
[1736368606927,6.2137,194.64,194.54,39.658381]
[1736368608417,6.2137,194.64,194.58,15.881497]
[1736368608591,0.5169,194.66,194.59,15.881497]
[1736368608794,20.5169,194.66,194.59,15.881497]
[1736368609301,6.1326,194.69,194.6,15.881497]
[1736368609508,6.1326,194.69,194.62,23.776884]
[1736368610215,6.1326,194.69,194.61,23.776884]
[1736368610403,6.1326,194.69,194.61,15.881497]
[1736368610731,6.1326,194.69,194.64,23.776884]
[1736368611190,6.1326,194.69,194.6,35.881497]
[1736368611590,6.1326,194.69,194.61,23.776884]
[1736368612912,6.1326,194.69,194.61,39.658381]
[1736368613210,6.1326,194.69,194.6,20.0]
[1736368613403,6.1326,194.69,194.57,99.981497]
[1736368614036,6.1326,194.69,194.58,39.658381]
[1736368614221,6.1326,194.69,194.6,15.881497]
[1736368614616,6.1326,194.69,194.61,23.776884]
[1736368614938,6.1326,194.69,194.61,39.658381]
[1736368616240,81.3,194.68,194.61,39.658381]
[1736368617136,81.3,194.68,194.63,23.776884]
[1736368618203,81.3,194.68,194.63,15.881497]
[1736368618400,81.3,194.68,194.64,15.881497]
[1736368618717,81.3,194.73,194.67,15.881497]
[1736368618910,6.4557,194.74,194.69,15.881497]
[1736368619110,7.99798343,194.75,194.7,15.881497]
[1736368619306,81.3,194.78,194.71,23.776884]
[1736368619510,7.99798343,194.79,194.73,23.776884]
[1736368619726,7.99798343,194.79,194.73,39.658381]
[1736368620112,7.99798343,194.79,194.75,39.658381]
[1736368620318,87.7756,194.83,194.77,15.881497]
[1736368620523,7.99798343,194.85,194.79,15.881497]
[1736368620815,7.99798343,194.85,194.78,2.5]
[1736368621428,6.4756,194.88,194.79,23.776884]
[1736368622411,81.3,194.87,194.77,2.5]
[1736368622830,81.3,194.87,194.78,23.776884]
[1736368624054,81.3,194.87,194.77,2.5]
[1736368624260,81.3,194.86,194.77,2.5]
[1736368624554,20.0,194.83,194.73,23.776884]
[1736368624856,20.0,194.83,194.73,26.276884]
[1736368625654,20.0,194.83,194.75,23.776884]
[1736368625825,81.3,194.86,194.79,23.776884]
[1736368626448,81.3,194.86,194.79,15.881497]
[1736368627754,0.5169,194.91,194.82,23.776884]
[1736368627755,81.3,194.9,194.82,23.776884]
[1736368628081,6.3223,194.93,194.84,23.776884]
[1736368628216,6.3223,194.93,194.86,23.776884]
[1736368628519,81.3,194.95,194.86,39.658381]
[1736368628850,14.64518343,194.98,194.87,15.881497]
[1736368629049,6.6472,194.98,194.88,23.776884]
[1736368629373,6.6472,194.98,194.92,23.776884]
[1736368629572,7.99798343,195.01,194.92,23.776884]
[1736368629745,7.99798343,195.01,194.9,15.881497]
[1736368630144,20.0,194.98,194.9,23.776884]
[1736368630656,20.0,194.99,194.9,23.776884]
[1736368630963,20.0,194.99,194.88,2.5]
[1736368631273,20.0,194.99,194.89,23.776884]
[1736368632044,20.0,194.95,194.84,15.881497]
[1736368632244,20.0,194.95,194.86,2.5]
[1736368632642,20.0,194.95,194.83,23.776884]
[1736368633056,20.0,194.95,194.83,15.881497]
[1736368633261,20.0,194.95,194.82,15.881497]
[1736368633647,20.0,194.95,194.83,23.776884]
[1736368633847,20.0,194.95,194.83,39.658381]
[1736368634050,20.0,194.95,194.85,15.881497]
[1736368634251,20.0,194.95,194.83,39.658381]
[1736368634958,20.0,194.95,194.85,23.776884]
[1736368636171,20.0,194.95,194.83,39.658381]
[1736368636391,20.0,194.95,194.84,23.776884]
[1736368637068,20.0,194.95,194.85,15.881497]
[1736368637269,81.3,194.94,194.87,23.776884]
[1736368637486,81.3,194.94,194.87,15.881497]
[1736368637784,81.3,194.98,194.9,15.881497]
[1736368637986,81.3,195.02,194.91,23.776884]
[1736368638145,81.3,195.02,194.89,15.881497]
[1736368638146,20.0,194.99,194.89,15.881497]
[1736368638344,81.3,195.02,194.9,15.881497]
[1736368638550,81.3,195.02,194.91,23.776884]
[1736368638856,81.3,195.02,194.93,23.776884]
[1736368639262,81.3,195.02,194.93,15.881497]
[1736368639672,81.3,195.02,194.93,23.776884]
[1736368640053,81.3,195.02,194.9,17.401097]
[1736368640253,81.3,195.02,194.91,23.776884]
[1736368640653,20.0,194.99,194.91,23.776884]
[1736368642566,20.0,194.98,194.87,15.881497]
[1736368642873,20.0,194.98,194.87,2.5]
[1736368643451,101.3,194.98,194.87,2.5]
[1736368643872,101.3,194.98,194.88,23.776884]
[1736368644063,101.3,194.98,194.88,39.658381]
[1736368644380,81.3,195.02,194.92,39.658381]
[1736368644579,81.3,195.01,194.92,39.658381]
[1736368644879,6.6472,195.03,194.94,39.658381]
[1736368645179,6.6472,195.03,194.92,15.881497]
[1736368645474,6.6472,195.03,194.92,23.776884]
[1736368645665,6.6472,195.03,194.91,23.776884]
[1736368646457,20.0,195.0,194.91,23.776884]
[1736368646665,20.0,195.0,194.9,20.0]
[1736368646978,20.0,195.0,194.89,15.881497]
[1736368647380,81.3,195.02,194.91,23.776884]
[1736368647875,81.3,195.02,194.91,39.658381]
[1736368648098,81.3,195.02,194.92,23.776884]
[1736368649375,81.3,195.02,194.91,23.776884]
[1736368650969,81.3,195.02,194.94,23.776884]
[1736368651280,81.3,195.02,194.92,12.8253]
[1736368651281,81.3,195.02,194.96,23.776884]
[1736368651473,6.4036,195.08,194.96,39.658381]
[1736368652863,6.4036,195.08,194.96,23.776884]
[1736368653059,81.3,195.07,194.98,23.776884]
[1736368653458,81.3,195.07,194.95,20.045597]
[1736368653664,81.3,195.07,194.95,4.1641]
[1736368653876,81.3,195.07,194.96,26.276884]
[1736368657088,81.3,195.05,194.91,28.707697]
[1736368657275,81.3,195.04,194.9,24.635497]
[1736368658184,81.3,195.03,194.91,23.776884]
[1736368658685,81.3,195.03,194.89,19.947097]
[1736368658890,81.3,195.03,194.9,15.881497]
[1736368659891,81.3,195.03,194.91,23.776884]
[1736368660390,4.61096339,195.06,194.85,28.711597]
[1736368660391,81.3,194.98,194.85,28.711597]
[1736368660591,81.3,194.96,194.84,21.883497]
[1736368660787,20.0,194.93,194.83,4.1336]
[1736368660992,81.3,194.92,194.83,4.1336]
[1736368661521,81.3,194.91,194.83,20.0]
[1736368662394,81.3,194.9,194.81,23.776884]
[1736368663565,81.3,194.9,194.8,2.5]
[1736368663768,81.3,194.9,194.81,23.776884]
[1736368665386,81.3,194.9,194.8,23.776884]
[1736368665805,6.2818,194.88,194.8,23.776884]
[1736368666104,81.3,194.86,194.77,25.33501612]
[1736368666274,81.3,194.86,194.79,23.776884]
[1736368666805,81.3,194.86,194.77,23.776884]
[1736368667310,81.3,194.86,194.77,49.11190012]
[1736368667710,81.3,194.86,194.79,23.776884]
[1736368669212,81.3,194.86,194.77,49.11190012]
[1736368669916,81.3,194.86,194.76,23.776884]
[1736368670077,81.3,194.85,194.76,23.776884]
[1736368671198,81.3,194.85,194.75,23.776884]
[1736368671504,81.3,194.85,194.75,49.11190012]
[1736368674105,81.3,194.84,194.73,119.77321612]
[1736368674311,8.30046442,194.88,194.73,119.77321612]
[1736368674312,81.3,194.82,194.74,23.776884]
[1736368676397,81.3,194.82,194.72,47.83501612]
[1736368676922,81.3,194.82,194.73,23.776884]
[1736368677717,81.8169,194.8,194.69,26.88231612]
[1736368677918,6.6364,194.79,194.68,27.83501612]
[1736368678217,81.3,194.78,194.68,25.33501612]
[1736368678391,81.3,194.78,194.69,23.776884]
[1736368678997,81.3,194.78,194.67,25.33501612]
[1736368679198,81.3,194.77,194.65,25.33501612]
[1736368679384,81.3,194.76,194.64,1.5203]
[1736368679588,2.5,194.78,194.61,27.83501612]
[1736368679589,81.3,194.73,194.61,27.83501612]
[1736368679809,81.3,194.72,194.61,2.5]
[1736368680027,81.3,194.72,194.59,26.85531612]
[1736368680189,81.3,194.72,194.61,20.0]
[1736368680390,81.3,194.72,194.62,25.33501612]
[1736368680908,81.3,194.72,194.61,45.33501612]
[1736368681121,81.3,194.72,194.61,20.0]
[1736368682721,81.3,194.72,194.61,45.33501612]
[1736368683320,81.3,194.72,194.62,39.6399211]
[1736368685012,81.3,194.71,194.61,20.0]
[1736368685647,6.1872,194.7,194.61,20.0]
[1736368686339,81.3,194.69,194.58,15.8630371]
[1736368686629,81.3,194.68,194.54,17.4607371]
[1736368686838,20.0,194.65,194.52,15.8630371]
[1736368687127,101.3,194.64,194.52,15.8630371]
[1736368687998,101.3,194.64,194.53,23.776884]
[1736368688192,101.3,194.64,194.51,28.7156371]
[1736368688408,101.3,194.64,194.53,15.8630371]
[1736368688817,81.3,194.64,194.55,15.8630371]
[1736368689326,81.3,194.64,194.56,15.8630371]
[1736368690332,81.3,194.64,194.55,15.8630371]
[1736368691143,81.3,194.63,194.57,23.776884]
[1736368691315,81.3,194.67,194.59,39.6399211]
[1736368691516,81.3,194.67,194.58,15.8630371]
[1736368691737,81.3,194.66,194.57,15.8630371]
[1736368691951,81.3,194.65,194.56,20.0]
[1736368692157,81.3,194.65,194.56,35.8630371]
[1736368692622,81.3,194.64,194.57,15.8630371]
[1736368695021,81.3,194.64,194.58,15.8630371]
[1736368697152,81.3,194.64,194.57,15.8630371]
[1736368697634,81.3,194.64,194.58,15.8630371]
[1736368698625,81.3,194.64,194.59,52.4874211]
[1736368698836,6.7041,194.7,194.63,15.8630371]
[1736368699165,6.5744,194.75,194.66,15.8630371]
[1736368699541,6.5744,194.75,194.65,15.8630371]
[1736368700337,6.5744,194.75,194.63,12.8444]
[1736368700338,6.5744,194.75,194.66,15.8630371]
[1736368701146,6.5744,194.75,194.65,15.8630371]
[1736368701343,81.3,194.74,194.62,15.8630371]
[1736368701543,81.3,194.74,194.61,15.8630371]
[1736368701755,81.3,194.74,194.62,23.776884]
[1736368703190,81.3,194.74,194.62,15.8630371]
[1736368703460,81.3,194.74,194.63,15.8630371]
[1736368703644,81.3,194.74,194.62,12.8455]
[1736368703645,81.3,194.74,194.62,28.7085371]
[1736368704146,81.3,194.74,194.63,15.8630371]
[1736368704332,81.3,194.74,194.62,15.8630371]
[1736368704549,81.3,194.7,194.61,15.8630371]
[1736368704777,2.5,194.78,194.56,28.7123371]
[1736368704778,6.5886,194.66,194.56,28.7123371]
[1736368704951,6.5886,194.66,194.56,12.8493]
[1736368705156,81.3,194.65,194.53,32.7733371]
[1736368705376,81.3,194.65,194.54,23.776884]
[1736368706183,81.3,194.65,194.54,39.6399211]
[1736368709075,6.5886,194.66,194.54,39.6399211]
[1736368709076,81.3,194.64,194.54,39.6399211]
[1736368709273,81.3,194.64,194.56,15.8630371]
[1736368710762,81.3,194.64,194.55,28.7131371]
[1736368711158,81.3,194.63,194.57,15.8630371]
[1736368711459,81.3,194.63,194.56,15.8630371]
[1736368715999,81.3,194.63,194.58,15.8630371]
[1736368716367,81.3,194.63,194.58,23.776884]
[1736368716864,81.3,194.63,194.58,15.8630371]
[1736368717101,81.3,194.63,194.6,15.8630371]
[1736368717598,81.3,194.63,194.59,15.8630371]
[1736368718894,81.3,194.63,194.6,23.776884]
[1736368719104,81.3,194.63,194.6,39.6399211]
[1736368719668,81.3,194.63,194.59,20.0]
[1736368719896,81.3,194.63,194.6,15.8630371]
[1736368720273,81.3,194.7,194.61,23.776884]
[1736368720664,81.3,194.7,194.61,15.8630371]
[1736368721466,81.3,194.7,194.6,52.4863211]
[1736368721902,81.3,194.7,194.62,15.8630371]
[1736368722204,81.3,194.7,194.63,15.8630371]
[1736368722709,81.3,194.7,194.64,15.8630371]
[1736368723002,6.1533,194.71,194.65,15.8630371]
[1736368723244,6.1533,194.71,194.64,15.8630371]
[1736368723377,6.1533,194.71,194.63,39.6399211]
[1736368724199,81.3,194.76,194.67,15.8630371]
[1736368724200,6.2371,194.76,194.67,15.8630371]
[1736368724586,6.2371,194.76,194.68,15.8630371]
[1736368724900,6.2371,194.76,194.69,23.776884]
[1736368725789,6.2371,194.76,194.68,15.8630371]
[1736368725976,6.2371,194.76,194.66,15.8630371]
[1736368726290,6.2371,194.76,194.67,23.776884]
[1736368727281,81.3,194.74,194.64,35.8630371]
[1736368727686,81.3,194.74,194.65,23.776884]
[1736368729110,81.3,194.74,194.65,39.6399211]
[1736368729723,81.3,194.74,194.66,15.8630371]
[1736368730020,81.3,194.74,194.67,15.8630371]
[1736368730814,6.2371,194.76,194.69,15.8630371]
[1736368731801,6.2371,194.76,194.68,52.4814211]
[1736368733124,6.2371,194.76,194.68,23.776884]
[1736368733494,6.2371,194.76,194.67,81.6]